[Event "Championnat d'Europe Rapide"]
[Date "2024.12.08"]
[White "Koelle, Tobias"]
[Black "Motylev, Alexander"]
[WhiteElo "2437"]
[BlackElo "2596"]
[Round "8.17"]
[Result "1/2-1/2"]
[TimeControl "900+10"]

1. d4 {[%clk 00:15:18]} d5 {[%emt 00:00:02] [%clk 00:15:18]} 2. c4 {[%emt
00:00:02] [%clk 00:15:26]} c6 {[%emt 00:00:02] [%clk 00:15:26]} 3. Nf3 {[%emt
00:00:07] [%clk 00:15:29]} Nf6 {[%emt 00:00:02] [%clk 00:15:35]} 4. Nc3 {[%emt
00:00:02] [%clk 00:15:37]} e6 {[%emt 00:00:09] [%clk 00:15:36]} 5. Bg5 {[%emt
00:00:18] [%clk 00:15:28]} Nbd7 {[%emt 00:00:03] [%clk 00:15:44]} 6. e3 {[%emt
00:00:03] [%clk 00:15:35]} Be7 {[%emt 00:00:02] [%clk 00:15:51]} 7. Qc2 {[%emt
00:00:23] [%clk 00:15:21]} O-O {[%emt 00:00:04] [%clk 00:15:59]} 8. Rd1 {[%emt
00:01:11] [%clk 00:14:19]} h6 {[%emt 00:00:03] [%clk 00:16:06]} 9. cxd5 {[%emt
00:00:06] [%clk 00:14:23]} exd5 {[%emt 00:00:19] [%clk 00:15:58]} 10. Bf4 {[%emt
00:01:47] [%clk 00:12:45]} Re8 {[%emt 00:00:31] [%clk 00:15:37]} 11. g4 {[%emt
00:00:26] [%clk 00:12:29]} Nf8 {[%emt 00:03:44] [%clk 00:12:03]} 12. g5 {[%emt
00:00:25] [%clk 00:12:14]} Nh5 {[%emt 00:00:15] [%clk 00:11:58]} 13. gxh6 {[%emt
00:01:58] [%clk 00:10:26]} Nxf4 {[%emt 00:00:09] [%clk 00:12:00]} 14. exf4
{[%emt 00:00:19] [%clk 00:10:17]} Bg5+ {[%emt 00:00:27] [%clk 00:11:43]} 15. Be2
{[%emt 00:01:28] [%clk 00:08:58]} Bxh6 {[%emt 00:00:04] [%clk 00:11:49]} 16. h4
{[%emt 00:00:26] [%clk 00:08:42]} Bxf4 {[%emt 00:00:33] [%clk 00:11:27]} 17. Kf1
{[%emt 00:00:08] [%clk 00:08:42]} Qf6 {[%emt 00:00:18] [%clk 00:11:20]} 18. Ng5
{[%emt 00:00:36] [%clk 00:08:16]} Bxg5 {[%emt 00:02:38] [%clk 00:08:53]} 19.
hxg5 {[%emt 00:00:02] [%clk 00:08:24]} Qxg5 {[%emt 00:00:01] [%clk 00:09:00]}
20. Qd3 {[%emt 00:01:25] [%clk 00:07:09]} Ng6 {[%emt 00:01:41] [%clk 00:07:30]}
21. Rh5 {[%emt 00:00:08] [%clk 00:07:11]} Qf4 {[%emt 00:00:18] [%clk 00:07:22]}
22. Qg3 {[%emt 00:00:09] [%clk 00:07:12]} Bd7 {[%emt 00:02:17] [%clk 00:05:16]}
23. Kg2 {[%emt 00:01:21] [%clk 00:05:59]} Qxg3+ {[%emt 00:03:06] [%clk
00:02:21]} 24. Kxg3 {[%emt 00:00:02] [%clk 00:06:08]} f6 {[%emt 00:00:13] [%clk
00:02:18]} 25. Bd3 {[%emt 00:00:02] [%clk 00:06:16]} Kf7 {[%emt 00:00:02] [%clk
00:02:25]} 26. Rdh1 {[%emt 00:00:04] [%clk 00:06:22]} Re7 {[%emt 00:00:30] [%clk
00:02:06]} 27. Ne2 {[%emt 00:00:06] [%clk 00:06:26]} Rae8 {[%emt 00:00:09] [%clk
00:02:06]} 28. Kf3 {[%emt 00:00:05] [%clk 00:06:31]} Rxe2 {[%emt 00:00:57] [%clk
00:01:20]} 29. Bxe2 {[%emt 00:00:02] [%clk 00:06:39]} Bg4+ {[%emt 00:00:02]
[%clk 00:01:28]} 30. Kxg4 {[%emt 00:00:02] [%clk 00:06:47]} Rxe2 {[%emt
00:00:01] [%clk 00:01:36]} 31. f4 {[%emt 00:00:44] [%clk 00:06:13]} Re4 {[%emt
00:00:09] [%clk 00:01:37]} 32. Rf1 {[%emt 00:00:29] [%clk 00:05:54]} Rxd4 {[%emt
00:00:09] [%clk 00:01:40]} 33. Kg3 {[%clk 00:06:03]} Rd3+ {[%emt 00:00:13] [%clk
00:01:37]} 34. Rf3 {[%clk 00:06:11]} Rd1 {[%clk 00:01:46]} 35. Ra3 {[%emt
00:00:32] [%clk 00:05:49]} a6 {[%emt 00:00:04] [%clk 00:01:53]} 36. Rb3 {[%clk
00:05:59]} b5 {[%emt 00:00:08] [%clk 00:01:55]} 37. Ra3 {[%clk 00:06:08]} Rg1+
{[%emt 00:00:08] [%clk 00:01:56]} 38. Kf2 {[%emt 00:00:27] [%clk 00:05:51]} Rb1
{[%emt 00:00:10] [%clk 00:01:57]} 39. Rxa6 {[%emt 00:00:01] [%clk 00:06:00]}
Nxf4 {[%emt 00:00:18] [%clk 00:01:49]} 40. Rh8 {[%clk 00:06:08]} Rxb2+ {[%emt
00:00:27] [%clk 00:01:32]} 41. Ke3 {[%emt 00:00:22]} g5 {[%clk 00:01:21]} 42.
Rxc6 {[%emt 00:00:05] [%clk 00:06:23]} Rxa2 {[%emt 00:00:29] [%clk 00:01:02]}
43. Rh6 {[%emt 00:00:01] [%clk 00:06:31]} Ne6 {[%emt 00:00:24] [%clk 00:00:48]}
44. Rb6 {[%emt 00:00:01] [%clk 00:06:40]} Kg7 {[%emt 00:00:32]} 45. Rh1 {[%clk
00:06:49]} Nf4 {[%emt 00:00:06] [%clk 00:00:32]} 46. Rc1 {[%emt 00:00:01] [%clk
00:06:58]} Ra3+ {[%emt 00:00:12] [%clk 00:00:30]} 47. Kd2 {[%emt 00:00:41] [%clk
00:06:27]} Ra7 {[%emt 00:00:26]} 48. Rcc6 {[%clk 00:06:31]} Rf7 {[%emt 00:00:04]
[%clk 00:00:26]} 49. Rxb5 {[%emt 00:00:01] [%clk 00:06:40]} Kg6 {[%emt 00:00:02]
[%clk 00:00:33]} 50. Rbb6 {[%emt 00:00:03] [%clk 00:06:47]} Kf5 {[%emt 00:00:02]
[%clk 00:00:42]} 51. Ke3 {[%emt 00:00:03] [%clk 00:06:53]} Ke5 {[%emt 00:00:02]
[%clk 00:00:50]} 52. Rc8 {[%emt 00:00:06] [%clk 00:06:57]} Re7 {[%emt 00:00:01]
[%clk 00:00:59]} 53. Kf3 {[%emt 00:00:02] [%clk 00:07:06]} Kf5 {[%emt 00:00:07]
[%clk 00:01:01]} 54. Rg8 {[%emt 00:00:20] [%clk 00:06:56]} Ng6 {[%emt 00:00:31]
[%clk 00:00:40]} 55. Rd6 {[%emt 00:00:26] [%clk 00:06:41]} Ke5 {[%emt 00:00:25]
[%clk 00:00:24]} 56. Ra6 {[%emt 00:00:10] [%clk 00:06:41]} Nf4 {[%emt 00:00:15]
[%clk 00:00:20]} 57. Kg4 {[%emt 00:00:17] [%clk 00:06:34]} Ne6 {[%emt 00:00:24]}
58. Ra1 {[%clk 00:06:21]} Nc5 {[%emt 00:00:13] [%clk 00:00:25]} 59. Rd8 {[%emt
00:00:14] [%clk 00:06:18]} f5+ {[%emt 00:00:13] [%clk 00:00:22]} 60. Kh5 {[%emt
00:00:27] [%clk 00:06:00]} Ne4 {[%emt 00:00:04] [%clk 00:00:29]} 61. Ra5 {[%emt
00:00:10] [%clk 00:06:00]} Kf4 {[%emt 00:00:04] [%clk 00:00:35]} 62. Kg6 {[%emt
00:00:11] [%clk 00:05:59]} Re6+ {[%emt 00:00:07] [%clk 00:00:38]} 63. Kf7 {[%emt
00:00:02] [%clk 00:06:07]} Rf6+ {[%emt 00:00:27] [%clk 00:00:20]} 64. Ke7 {[%emt
00:00:01] [%clk 00:06:17]} Rh6 {[%emt 00:00:09] [%clk 00:00:21]} 65. Rdxd5
{[%emt 00:00:03] [%clk 00:06:23]} Ng3 {[%emt 00:00:06] [%clk 00:00:26]} 66. Ra4+
{[%emt 00:00:49] [%clk 00:05:44]} Kf3 {[%emt 00:00:03] [%clk 00:00:33]} 67. Rd3+
{[%emt 00:00:10] [%clk 00:05:44]} Kg2 {[%emt 00:00:02] [%clk 00:00:41]} 68. Rd5
{[%emt 00:00:50] [%clk 00:05:04]} g4 {[%emt 00:00:09] [%clk 00:00:42]} 69. Kf7
{[%emt 00:00:01] [%clk 00:05:13]} Rb6 {[%emt 00:00:28] [%clk 00:00:24]} 70. Rxf5
{[%emt 00:00:02] [%clk 00:05:20]} Nxf5 {[%emt 00:00:09] [%clk 00:00:26]} 71.
Rxg4+ {[%emt 00:00:01] [%clk 00:05:29]} Kf3 {[%clk 00:00:34]} 72. Rg1 {[%emt
00:00:01] [%clk 00:05:38]} Ne3 {[%emt 00:00:23] [%clk 00:00:21]} 73. Re1 {[%emt
00:00:03] [%clk 00:05:45]} Ng4 {[%emt 00:00:04] [%clk 00:00:28]} 74. Rf1+ {[%emt
00:00:05] [%clk 00:05:49]} Ke4 {[%emt 00:00:01] [%clk 00:00:37]} 75. Re1+ {[%emt
00:00:05] [%clk 00:05:55]} Kf5 {[%emt 00:00:03] [%clk 00:00:45]} 76. Rf1+ {[%clk
00:06:03]} Kg5 {[%clk 00:00:54]} 77. Rg1 {[%emt 00:00:07] [%clk 00:06:06]} Rf6+
{[%emt 00:00:13] [%clk 00:00:51]} 78. Ke7 {[%emt 00:00:01] [%clk 00:06:15]} Rh6
{[%emt 00:00:21] [%clk 00:00:40]} 79. Kf7 {[%emt 00:00:06] [%clk 00:06:20]} Rh2
{[%emt 00:00:06] [%clk 00:00:43]} 80. Ke6 {[%emt 00:00:10] [%clk 00:06:21]} Rd2
{[%emt 00:00:03] [%clk 00:00:50]} 81. Rg3 {[%emt 00:00:07] [%clk 00:06:23]} Kf4
{[%emt 00:00:12] [%clk 00:00:49]} 82. Rg1 {[%emt 00:00:01] [%clk 00:06:31]} Ne3
{[%emt 00:00:05] [%clk 00:00:54]} 83. Ra1 {[%emt 00:00:09] [%clk 00:06:33]} Rd4
{[%emt 00:00:05] [%clk 00:00:59]} 84. Rb1 {[%emt 00:00:12] [%clk 00:06:30]} Ke4
{[%emt 00:00:08] [%clk 00:01:02]} 85. Re1 {[%emt 00:00:01] [%clk 00:06:38]} Rd3
{[%emt 00:00:05] [%clk 00:01:07]} 86. Ra1 {[%emt 00:00:12] [%clk 00:06:36]} Rd4
{[%emt 00:00:06] [%clk 00:01:11]} 87. Re1 {[%emt 00:00:02] [%clk 00:06:44]} Ra4
{[%emt 00:00:02] [%clk 00:01:19]} 88. Re2 {[%emt 00:00:15] [%clk 00:06:39]} Ra6+
{[%emt 00:00:02] [%clk 00:01:28]} 89. Kd7 {[%emt 00:00:09] [%clk 00:06:40]} Kd4
{[%emt 00:00:06] [%clk 00:01:32]} 90. Re1 {[%emt 00:00:20] [%clk 00:06:30]} Nf5
{[%emt 00:00:09] [%clk 00:01:32]} 91. Rd1+ {[%emt 00:00:06] [%clk 00:06:34]} Kc5
{[%emt 00:00:09] [%clk 00:01:34]} 92. Rc1+ {[%emt 00:00:36] [%clk 00:06:08]} Kd5
{[%emt 00:00:01] [%clk 00:01:43]} 93. Rd1+ {[%clk 00:06:17]} Nd4 {[%emt
00:00:01] [%clk 00:01:52]} 94. Ke7 {[%clk 00:06:26]} Rh6 {[%emt 00:00:59] [%clk
00:01:03]} 95. Kf7 {[%emt 00:00:18] [%clk 00:06:18]} Rh2 {[%emt 00:00:22] [%clk
00:00:50]} 96. Ke7 {[%emt 00:00:09] [%clk 00:06:20]} Ke5 {[%emt 00:00:32] [%clk
00:00:28]} 97. Re1+ {[%emt 00:00:02] [%clk 00:06:28]} Ne2 {[%clk 00:00:37]} 98.
Kd7 {[%emt 00:00:04] [%clk 00:06:35]} Kd5 {[%emt 00:00:03] [%clk 00:00:44]} 99.
Rd1+ {[%emt 00:00:03] [%clk 00:06:41]} Nd4 {[%emt 00:00:02] [%clk 00:00:53]}
100. Ke7 {[%emt 00:00:01] [%clk 00:06:50]} Rh6 {[%emt 00:00:10] [%clk 00:00:53]}
101. Kf7 {[%emt 00:00:06] [%clk 00:06:55]} Rb6 {[%emt 00:00:35] [%clk 00:00:27]}
102. Ke7 {[%emt 00:00:04] [%clk 00:07:01]} Re6+ {[%emt 00:00:07] [%clk
00:00:30]} 103. Kf7 {[%emt 00:00:02] [%clk 00:07:09]} Re3 {[%emt 00:00:17] [%clk
00:00:23]} 104. Kf6 {[%emt 00:00:09] [%clk 00:07:10]} Rf3+ {[%emt 00:00:06]
[%clk 00:00:27]} 105. Ke7 {[%emt 00:00:06] [%clk 00:07:13]} Rf2 {[%emt 00:00:12]
[%clk 00:00:26]} 106. Rd3 {[%emt 00:00:23] [%clk 00:07:00]} Ke5 {[%emt 00:00:16]
[%clk 00:00:19]} 107. Re3+ {[%emt 00:00:08] [%clk 00:07:02]} Kd5 {[%emt
00:00:01] [%clk 00:00:29]} 108. Rd3 {[%clk 00:07:11]} Rf1 {[%emt 00:00:02] [%clk
00:00:37]} 109. Rd2 {[%emt 00:00:33] [%clk 00:06:48]} Ke5 {[%emt 00:00:09] [%clk
00:00:37]} 110. Ra2 {[%emt 00:00:24] [%clk 00:06:34]} Nc6+ {[%emt 00:00:33]
[%clk 00:00:15]} 111. Kd7 {[%emt 00:00:02] [%clk 00:06:41]} Rc1 {[%emt 00:00:04]
[%clk 00:00:21]} 112. Re2+ {[%emt 00:00:06] [%clk 00:06:45]} Kd5 {[%emt
00:00:03] [%clk 00:00:29]} 113. Rd2+ {[%emt 00:00:01] [%clk 00:06:54]} Nd4
{[%clk 00:00:38]} 114. Ke7 {[%emt 00:00:06] [%clk 00:06:58]} Ke5 {[%emt
00:00:17] [%clk 00:00:31]} 115. Kd7 {[%emt 00:00:07] [%clk 00:07:01]} Rb1 {[%emt
00:00:20] [%clk 00:00:21]} 116. Kc7 {[%emt 00:00:29] [%clk 00:06:42]} Ne6+
{[%emt 00:00:16] [%clk 00:00:15]} 117. Kd7 {[%emt 00:00:11] [%clk 00:06:39]} Nd4
{[%emt 00:00:12] [%clk 00:00:14]} 118. Kc7 {[%emt 00:00:02] [%clk 00:06:48]} Kd5
{[%emt 00:00:03] [%clk 00:00:21]} 119. Rd3 {[%emt 00:00:10] [%clk 00:06:47]} Rh1
{[%emt 00:00:08] [%clk 00:00:24]} 120. Rg3 {[%emt 00:00:41] [%clk 00:06:16]}
Ne6+ {[%emt 00:00:11] [%clk 00:00:23]} 121. Kd7 {[%emt 00:00:33] [%clk
00:05:52]} Rh7+ {[%emt 00:00:08] [%clk 00:00:25]} 122. Ke8 {[%emt 00:00:09]
[%clk 00:05:54]} Ng7+ {[%emt 00:00:23] [%clk 00:00:12]} 123. Kf8 {[%emt
00:00:26] [%clk 00:05:37]} Nf5 {[%emt 00:00:01] [%clk 00:00:21]} 124. Rg1 {[%emt
00:00:18] [%clk 00:05:29]} Ke5 {[%emt 00:00:01] [%clk 00:00:31]} 125. Ra1 {[%emt
00:00:41] [%clk 00:04:57]} Ke6 {[%emt 00:00:04] [%clk 00:00:37]} 126. Ra6+
{[%emt 00:00:05] [%clk 00:05:02]} Nd6 {[%emt 00:00:02] [%clk 00:00:46]} 127. Kg8
{[%emt 00:00:03] [%clk 00:05:08]} Rd7 {[%emt 00:00:02] [%clk 00:00:55]} 128. Ra1
{[%emt 00:00:29] [%clk 00:04:48]} Kf6 {[%emt 00:00:04] [%clk 00:01:01]} 129.
Rf1+ {[%emt 00:00:39] [%clk 00:04:19]} Nf5 {[%emt 00:00:03] [%clk 00:01:09]}
130. Rf2 {[%emt 00:00:32] [%clk 00:03:56]} Rd1 {[%emt 00:00:28] [%clk 00:00:51]}
131. Rf4 {[%emt 00:02:02] [%clk 00:02:04]} Rd8+ {[%emt 00:00:45] [%clk
00:00:16]} 132. Kh7 {[%emt 00:00:02] [%clk 00:02:12]} Rd7+ {[%emt 00:00:10]
[%clk 00:00:17]} 133. Kg8 {[%emt 00:00:02] [%clk 00:02:19]} Rd1 {[%emt 00:00:13]
[%clk 00:00:14]} 134. Rf2 {[%emt 00:00:05] [%clk 00:02:24]} Re1 {[%emt 00:00:05]
[%clk 00:00:19]} 135. Kf8 {[%emt 00:00:09] [%clk 00:02:25]} Ke6 {[%emt 00:00:09]
[%clk 00:00:21]} 136. Ke8 {[%emt 00:00:32] [%clk 00:02:03]} Re3 {[%emt 00:00:16]
[%clk 00:00:15]} 137. Kd8 {[%emt 00:00:17] [%clk 00:01:56]} Rc3 {[%emt 00:00:02]
[%clk 00:00:23]} 138. Re2+ {[%emt 00:00:07] [%clk 00:01:59]} Ne3 {[%emt
00:00:01] [%clk 00:00:32]} 139. Ra2 {[%emt 00:00:19] [%clk 00:01:50]} Nd5 {[%emt
00:00:07] [%clk 00:00:35]} 140. Re2+ {[%emt 00:00:17] [%clk 00:01:43]} Kd6
{[%emt 00:00:01] [%clk 00:00:44]} 141. Rd2 {[%emt 00:00:03] [%clk 00:01:50]} Rh3
{[%emt 00:00:08] [%clk 00:00:45]} 142. Ke8 {[%emt 00:00:11] [%clk 00:01:49]} Rh7
{[%emt 00:00:19] [%clk 00:00:37]} 143. Rd1 {[%emt 00:00:09] [%clk 00:01:50]} Ra7
{[%emt 00:00:04] [%clk 00:00:43]} 144. Kf8 {[%emt 00:00:04] [%clk 00:01:56]} Ke5
{[%emt 00:00:09] [%clk 00:00:44]} 145. Re1+ {[%emt 00:00:03] [%clk 00:02:03]}
Kf5 {[%emt 00:00:03] [%clk 00:00:51]} 146. Rf1+ {[%emt 00:00:01] [%clk
00:02:12]} Nf4 {[%clk 00:01:00]} 147. Ke8 {[%emt 00:00:07] [%clk 00:02:16]}
1/2-1/2

[Site "Europe Echecs"]

[Event "Championnat d'Europe Rapide"]
[Date "2024.12.08"]
[White "Fressinet, Laurent"]
[Black "Domingo Nunez, Ruben"]
[WhiteElo "2588"]
[BlackElo "2409"]
[Round "8.18"]
[Result "0-1"]
[TimeControl "900+10"]

1. d4 {[%emt 00:01:27] [%clk 00:15:17]} g6 {[%emt 00:00:08] [%clk 00:15:13]} 2.
g3 {[%emt 00:00:36] [%clk 00:14:51]} Bg7 {[%emt 00:00:03] [%clk 00:15:21]} 3.
Bg2 {[%emt 00:00:01] [%clk 00:15:00]} d6 {[%emt 00:00:17] [%clk 00:15:14]} 4.
Nf3 {[%emt 00:00:07] [%clk 00:15:02]} Nf6 {[%emt 00:00:02] [%clk 00:15:23]} 5.
O-O {[%emt 00:00:03] [%clk 00:15:09]} O-O {[%emt 00:00:04] [%clk 00:15:29]} 6.
Nc3 {[%emt 00:00:03] [%clk 00:15:16]} Nc6 {[%emt 00:00:06] [%clk 00:15:34]} 7.
d5 {[%emt 00:00:04] [%clk 00:15:22]} Nb8 {[%clk 00:15:43]} 8. Nd4 {[%emt
00:00:23] [%clk 00:15:08]} Bd7 {[%emt 00:00:12] [%clk 00:15:42]} 9. a4 {[%emt
00:00:38] [%clk 00:14:40]} c5 {[%emt 00:00:01] [%clk 00:15:50]} 10. dxc6 {[%emt
00:01:02] [%clk 00:13:48]} Nxc6 {[%emt 00:00:06] [%clk 00:15:54]} 11. Nb3 {[%emt
00:00:30] [%clk 00:13:27]} Qc8 {[%emt 00:00:35] [%clk 00:15:30]} 12. e4 {[%emt
00:00:18] [%clk 00:13:19]} Bh3 {[%emt 00:00:07] [%clk 00:15:34]} 13. Qe2 {[%emt
00:00:32] [%clk 00:12:56]} Rd8 {[%emt 00:00:57] [%clk 00:14:47]} 14. Rd1 {[%emt
00:00:32] [%clk 00:12:34]} Bxg2 {[%emt 00:00:02] [%clk 00:14:55]} 15. Kxg2
{[%emt 00:00:01] [%clk 00:12:43]} Qe6 {[%emt 00:00:02] [%clk 00:15:04]} 16. a5
{[%emt 00:00:53] [%clk 00:11:59]} Rac8 {[%emt 00:00:22] [%clk 00:14:52]} 17. Ra4
{[%emt 00:01:04] [%clk 00:11:05]} h5 {[%emt 00:00:02] [%clk 00:15:00]} 18. h3
{[%emt 00:00:22] [%clk 00:10:53]} Nd7 {[%emt 00:09:23] [%clk 00:05:47]} 19. Nd5
{[%emt 00:01:34] [%clk 00:09:28]} Nc5 {[%emt 00:00:03] [%clk 00:05:55]} 20. Nf4
{[%emt 00:02:22] [%clk 00:07:16]} Qe5 {[%emt 00:00:38] [%clk 00:05:27]} 21. Nxc5
{[%emt 00:00:28] [%clk 00:06:58]} dxc5 {[%emt 00:00:02] [%clk 00:05:35]} 22.
Rxd8+ {[%emt 00:00:30] [%clk 00:06:38]} Rxd8 {[%emt 00:00:02] [%clk 00:05:43]}
23. c3 {[%emt 00:00:01] [%clk 00:06:47]} h4 {[%emt 00:00:52] [%clk 00:05:01]}
24. g4 {[%emt 00:00:19] [%clk 00:06:38]} Qd6 {[%emt 00:00:16] [%clk 00:04:54]}
25. Nd5 {[%emt 00:01:42] [%clk 00:05:07]} e6 {[%emt 00:00:13] [%clk 00:04:52]}
26. Ne3 {[%emt 00:00:02] [%clk 00:05:14]} Qf4 {[%emt 00:00:08] [%clk 00:04:54]}
27. Bd2 {[%emt 00:01:13] [%clk 00:04:10]} Bh6 {[%emt 00:02:18] [%clk 00:02:46]}
28. Be1 {[%emt 00:00:43] [%clk 00:03:38]} Ne5 {[%emt 00:00:22] [%clk 00:02:34]}
29. Nc4 {[%emt 00:01:24] [%clk 00:02:23]} Nd3 {[%emt 00:00:10] [%clk 00:02:35]}
30. Ra1 {[%emt 00:00:24] [%clk 00:02:09]} Qc7 {[%emt 00:02:22] [%clk 00:00:23]}
31. Qf3 {[%emt 00:00:09] [%clk 00:02:10]} Nf4+ {[%emt 00:00:01] [%clk 00:00:32]}
32. Kf1 {[%emt 00:00:01] [%clk 00:02:19]} Rd3 {[%emt 00:00:02] [%clk 00:00:41]}
33. Ne3 {[%clk 00:02:27]} Qc6 {[%emt 00:00:17] [%clk 00:00:35]} 34. Kg1 {[%emt
00:00:32] [%clk 00:02:05]} Qb5 {[%emt 00:00:06] [%clk 00:00:38]} 35. b4 {[%emt
00:00:02] [%clk 00:02:14]} cxb4 {[%emt 00:00:26] [%clk 00:00:22]} 36. cxb4
{[%emt 00:00:01] [%clk 00:02:23]} Rd4 {[%emt 00:00:01] [%clk 00:00:31]} 37. Rd1
{[%emt 00:00:28] [%clk 00:02:04]} Ne2+ {[%emt 00:00:02] [%clk 00:00:39]} 38. Kf1
{[%emt 00:00:41] [%clk 00:01:33]} Nf4+ {[%emt 00:00:33] [%clk 00:00:16]} 39. Kg1
{[%emt 00:00:03] [%clk 00:01:40]} Ne2+ {[%emt 00:00:01] [%clk 00:00:25]} 40. Kf1
{[%clk 00:01:50]} Nc3+ {[%emt 00:00:06] [%clk 00:00:30]} 41. Kg2 {[%emt
00:00:01] [%clk 00:01:57]} Nxd1 {[%emt 00:00:06] [%clk 00:00:35]} 42. Nxd1
{[%emt 00:00:02] [%clk 00:02:05]} Qd3 {[%emt 00:00:02] [%clk 00:00:43]} 43. Nc3
{[%emt 00:00:59] [%clk 00:01:16]} Qxf3+ {[%emt 00:00:15] [%clk 00:00:37]} 44.
Kxf3 {[%emt 00:00:02] [%clk 00:01:25]} Rd3+ {[%clk 00:00:46]} 45. Kg2 {[%emt
00:00:08] [%clk 00:01:27]} Bg7 {[%emt 00:00:27] [%clk 00:00:29]} 46. Ne2 {[%emt
00:00:29] [%clk 00:01:04]} Rd1 {[%emt 00:00:05] [%clk 00:00:38]} 47. Kf1 {[%emt
00:00:04] [%clk 00:01:10]} Rb1 {[%emt 00:00:05] [%clk 00:00:43]} 48. f3 {[%emt
00:00:12] [%clk 00:01:09]} Bf8 {[%emt 00:00:03] [%clk 00:00:50]} 0-1

[Site "Europe Echecs"]

[Event "Championnat d'Europe Rapide"]
[Date "2024.12.08"]
[White "Pancevski, Filip"]
[Black "Lagarde, Maxime"]
[WhiteElo "2420"]
[BlackElo "2600"]
[Round "8.19"]
[Result "0-1"]
[TimeControl "900+10"]

1. e4 {[%emt 00:00:02] [%clk 00:15:18]} e6 {[%emt 00:00:02] [%clk 00:15:19]} 2.
d4 {[%emt 00:00:05] [%clk 00:15:23]} d5 {[%clk 00:15:28]} 3. Nc3 {[%emt
00:00:01] [%clk 00:15:32]} Bb4 {[%emt 00:00:01] [%clk 00:15:36]} 4. exd5 {[%emt
00:00:01] [%clk 00:15:41]} exd5 {[%emt 00:00:05] [%clk 00:15:42]} 5. Bd3 {[%emt
00:00:01] [%clk 00:15:49]} Nc6 {[%emt 00:00:11] [%clk 00:15:41]} 6. Nge2 {[%emt
00:00:02] [%clk 00:15:57]} Nge7 {[%emt 00:00:05] [%clk 00:15:46]} 7. a3 {[%emt
00:00:05] [%clk 00:16:02]} Ba5 {[%emt 00:00:01] [%clk 00:15:55]} 8. Bf4 {[%emt
00:00:27] [%clk 00:15:45]} Bg4 {[%emt 00:00:37] [%clk 00:15:29]} 9. f3 {[%emt
00:00:12] [%clk 00:15:43]} Bh5 {[%emt 00:00:01] [%clk 00:15:37]} 10. h4 {[%emt
00:00:09] [%clk 00:15:44]} f6 {[%emt 00:01:28] [%clk 00:14:19]} 11. Qd2 {[%emt
00:00:24] [%clk 00:15:30]} a6 {[%emt 00:00:12] [%clk 00:14:18]} 12. g4 {[%emt
00:00:54] [%clk 00:14:45]} Bf7 {[%emt 00:00:02] [%clk 00:14:27]} 13. h5 {[%emt
00:00:01] [%clk 00:14:54]} Qd7 {[%emt 00:02:12] [%clk 00:12:25]} 14. Be3 {[%emt
00:01:51] [%clk 00:13:12]} b5 {[%emt 00:01:37] [%clk 00:10:58]} 15. Nf4 {[%emt
00:03:37] [%clk 00:09:46]} Bb6 {[%emt 00:00:03] [%clk 00:11:05]} 16. Nce2 {[%emt
00:00:11] [%clk 00:09:45]} Na5 {[%emt 00:00:41] [%clk 00:10:34]} 17. b3 {[%emt
00:00:13] [%clk 00:09:41]} Nb7 {[%emt 00:00:07] [%clk 00:10:37]} 18. a4 {[%emt
00:02:50] [%clk 00:07:01]} O-O {[%emt 00:00:25] [%clk 00:10:22]} 19. Kf2 {[%emt
00:02:10] [%clk 00:05:02]} Nd6 {[%emt 00:00:10] [%clk 00:10:21]} 20. Qc3 {[%emt
00:00:57] [%clk 00:04:15]} Rae8 {[%emt 00:00:37] [%clk 00:09:55]} 21. Qd2 {[%emt
00:01:22] [%clk 00:03:02]} f5 {[%emt 00:00:34] [%clk 00:09:31]} 22. g5 {[%emt
00:02:33] [%clk 00:00:39]} Ne4+ {[%emt 00:00:02] [%clk 00:09:39]} 23. Bxe4
{[%emt 00:00:17] [%clk 00:00:32]} fxe4 {[%emt 00:00:19] [%clk 00:09:30]} 24. a5
{[%emt 00:00:07] [%clk 00:00:36]} exf3 {[%emt 00:00:39] [%clk 00:09:01]} 25. Ng3
{[%emt 00:00:01] [%clk 00:00:44]} Ba7 {[%emt 00:00:12] [%clk 00:08:59]} 26. Qd3
{[%emt 00:00:03] [%clk 00:00:51]} Be6 {[%emt 00:00:30] [%clk 00:08:39]} 27. Nxe6
{[%emt 00:00:19] [%clk 00:00:43]} Qxe6 {[%emt 00:00:02] [%clk 00:08:47]} 28.
Rae1 {[%emt 00:00:06] [%clk 00:00:46]} Qd6 {[%emt 00:00:28] [%clk 00:08:28]} 29.
Bd2 {[%emt 00:00:19] [%clk 00:00:38]} c5 {[%emt 00:00:20] [%clk 00:08:19]} 30.
c3 {[%clk 00:00:47]} c4 {[%emt 00:01:03] [%clk 00:07:25]} 31. bxc4 {[%emt
00:00:04] [%clk 00:00:53]} bxc4 {[%emt 00:00:01] [%clk 00:07:34]} 32. Qe3 {[%emt
00:00:21] [%clk 00:00:42]} Bb8 {[%emt 00:00:36] [%clk 00:07:08]} 33. Qe5 {[%emt
00:00:12] [%clk 00:00:40]} Qd7 {[%emt 00:00:22] [%clk 00:06:57]} 0-1

[Site "Europe Echecs"]